fUST/lending_fUST_20240719
["ID","MTS","AMOUNT","RATE_DAILY","PERIOD"]
[332635238,1721381483468,-500.0,0.00019452,2]
[332635239,1721381483479,-500.0,0.00019452,2]
[332635240,1721381483489,-218.82323113,0.00019452,2]
[332635241,1721381483501,-500.0,0.00019452,2]
[332635242,1721381483512,-500.0,0.00019452,2]
[332635243,1721381483524,-500.0,0.00019452,2]
[332635244,1721381483535,-500.0,0.00019452,2]
[332635245,1721381483544,-520.97209785,0.00019452,2]
[332635246,1721381483553,-500.0,0.00019452,2]
[332635247,1721381483563,-500.0,0.00019452,2]
[332635248,1721381483571,-500.0,0.00019452,2]
[332635249,1721381483580,-500.0,0.00019452,2]
[332635250,1721381483592,-500.0,0.00019452,2]
[332635251,1721381483607,-500.0,0.00019452,2]
[332635252,1721381483617,-500.0,0.00019452,2]
[332635253,1721381483626,-500.0,0.00019452,2]
[332635254,1721381483638,-500.0,0.00019452,2]
[332635255,1721381483648,-500.0,0.00019452,2]
[332635256,1721381483658,-500.0,0.00019452,2]
[332635257,1721381483668,-500.0,0.00019452,2]
[332635258,1721381483679,-500.0,0.00019452,2]
[332635259,1721381483688,-500.0,0.00019452,2]
[332635260,1721381483699,-505.60476068,0.00019452,2]
[332635261,1721381483708,-500.0,0.00019452,2]
[332635262,1721381483720,-500.0,0.00019452,2]
[332635263,1721381483729,-500.0,0.00019452,2]
[332635264,1721381483742,-505.77500976,0.00019452,2]
[332635265,1721381483751,-500.0,0.00019452,2]
[332635266,1721381483760,-570.38622525,0.00019452,2]
[332635267,1721381483769,-500.0,0.00019452,2]
[332635268,1721381483779,-500.0,0.00019452,2]
[332635269,1721381483790,-500.0,0.00019452,2]
[332635270,1721381483800,-500.0,0.00019452,2]
[332635271,1721381483810,-500.0,0.00019452,2]
[332635272,1721381483819,-500.0,0.00019452,2]
[332635273,1721381483828,-500.0,0.00019452,2]
[332635274,1721381483837,-500.0,0.00019452,2]
[332635275,1721381483846,-500.0,0.00019452,2]
[332635276,1721381483856,-516.79,0.00019452,2]
[332635277,1721381483866,-500.0,0.00019452,2]
[332635278,1721381483875,-500.0,0.00019452,2]
[332635279,1721381483885,-409.68468256,0.00019452,2]
[332635280,1721381483895,-514.08,0.00019452,2]
[332635281,1721381483904,-500.0,0.00019452,2]
[332635282,1721381483913,-926.41,0.00019452,2]
[332635283,1721381483923,-500.0,0.00019452,2]
[332635284,1721381483932,-500.0,0.00019452,2]
[332635285,1721381483941,-500.0,0.00019452,2]
[332635286,1721381483952,-500.0,0.00019452,2]
[332635287,1721381483961,-500.0,0.00019452,2]
[332635288,1721381483971,-507.73783479,0.00019452,2]
[332635289,1721381483980,-500.0,0.00019452,2]
[332635290,1721381483989,-560.54590586,0.00019452,2]
[332635291,1721381483999,-569.73,0.00019452,2]
[332635292,1721381484008,-500.0,0.00019452,2]
[332635293,1721381484018,-500.0,0.00019452,2]
[332635294,1721381484027,-500.0,0.00019452,2]
[332635295,1721381484036,-500.0,0.00019452,2]
[332635296,1721381484045,-500.0,0.00019452,2]
[332635297,1721381484054,-500.0,0.00019452,2]
[332635298,1721381484063,-506.75001653,0.00019452,2]
[332635299,1721381484074,-1032.38,0.00019452,2]
[332635300,1721381484084,-500.0,0.00019452,2]
[332635301,1721381484094,-804.84,0.00019452,2]
[332635302,1721381484104,-500.0,0.00019452,2]
[332635303,1721381484114,-1858.15,0.00019452,2]
[332635304,1721381484124,-500.0,0.00019452,2]
[332635305,1721381484133,-529.8733355,0.00019452,2]
[332635306,1721381484143,-500.0,0.00019452,2]
[332635307,1721381484153,-500.0,0.00019452,2]
[332635308,1721381484162,-1848.74,0.00019452,2]
[332635309,1721381484171,-556.06,0.00019452,2]
[332635310,1721381484180,-2725.62,0.00019452,2]
[332635311,1721381484190,-1316.34,0.00019452,2]
[332635312,1721381484200,-500.0,0.00019452,2]
[332635313,1721381484210,-500.0,0.00019452,2]
[332635314,1721381484220,-500.0,0.00019452,2]
[332635315,1721381484230,-500.0,0.00019452,2]
[332635316,1721381484239,-1619.92,0.00019452,2]
[332635317,1721381484249,-500.0,0.00019452,2]
[332635318,1721381484258,-1379.03,0.00019452,2]
[332635319,1721381484267,-500.0,0.00019452,2]
[332635320,1721381484277,-1183.32,0.00019452,2]
[332635321,1721381484286,-1122.53,0.00019452,2]
[332635322,1721381484296,-500.0,0.00019452,2]
[332635323,1721381484306,-500.0,0.00019452,2]
[332635324,1721381484316,-500.0,0.00019452,2]
[332635325,1721381484325,-766.79,0.00019452,2]
[332635326,1721381484334,-1396.96,0.00019452,2]
[332635327,1721381484343,-500.0,0.00019452,2]
[332635328,1721381484353,-500.0,0.00019452,2]
[332635329,1721381484362,-500.0,0.00019452,2]
[332635330,1721381484371,-608.23,0.00019452,2]
[332635331,1721381484381,-500.0,0.00019452,2]
[332635332,1721381484390,-766.03,0.00019452,2]
[332635333,1721381484400,-500.0,0.00019452,2]
[332635334,1721381484409,-2819.7,0.00019452,2]
[332635335,1721381484419,-411.76555051,0.00019452,2]
[332635336,1721381484428,-500.0,0.00019452,2]
[332635337,1721381484437,-544.48,0.00019452,2]
[332635338,1721381484446,-1594.88,0.00019452,2]
[332635339,1721381484457,-500.0,0.00019452,2]
[332635340,1721381484465,-500.0,0.00019452,2]
[332635341,1721381484475,-500.0,0.00019452,2]
[332635342,1721381484484,-539.84,0.00019452,2]
[332635343,1721381484494,-773.44,0.00019452,2]
[332635344,1721381484503,-551.6,0.00019452,2]
[332635345,1721381484512,-500.0,0.00019452,2]
[332635346,1721381484522,-500.0,0.00019452,2]
[332635347,1721381484531,-500.0,0.00019452,2]
[332635348,1721381484540,-1002.38,0.00019452,2]
[332635349,1721381484549,-500.0,0.00019452,2]
[332635350,1721381484558,-500.0,0.00019452,2]
[332635351,1721381484568,-500.0,0.00019452,2]
[332635352,1721381484577,-697.81,0.00019452,2]
[332635353,1721381484586,-500.0,0.00019452,2]
[332635354,1721381484597,-500.0,0.00019452,2]
[332635355,1721381484606,-500.0,0.00019452,2]
[332635356,1721381484615,-500.0,0.00019452,2]
[332635357,1721381484624,-500.0,0.00019452,2]
[332635358,1721381484633,-500.0,0.00019452,2]
[332635359,1721381484642,-500.0,0.00019452,2]
[332635360,1721381484651,-500.0,0.00019452,2]
[332635361,1721381484661,-500.0,0.00019452,2]
[332635362,1721381484670,-479.0328799,0.00019452,2]
[332635363,1721381484679,-801.82,0.00019452,2]
[332635364,1721381484688,-500.0,0.00019452,2]
[332635365,1721381484697,-254.7491897,0.00019452,2]
[332635366,1721381484707,-500.0,0.00019452,2]
[332635367,1721381484717,-500.0,0.00019452,2]
[332635368,1721381484726,-500.0,0.00019452,2]
[332635369,1721381484736,-500.0,0.00019452,2]
[332635370,1721381484745,-500.0,0.00019452,2]
[332635371,1721381484755,-1041.48,0.00019452,2]
[332635372,1721381484764,-500.0,0.00019452,2]
[332635373,1721381484773,-503.80063444,0.00019452,2]
[332635374,1721381484783,-500.0,0.00019452,2]
[332635375,1721381484937,-500.0,0.00019452,2]
[332635376,1721381484949,-500.0,0.00019452,2]
[332635377,1721381484960,-500.0,0.00019452,2]
[332635378,1721381484970,-500.0,0.00019452,2]
[332635379,1721381484979,-500.0,0.00019452,2]
[332635380,1721381484989,-1164.69,0.00019452,2]
[332635381,1721381484999,-500.0,0.00019452,2]
[332635382,1721381485008,-629.84762426,0.00019452,2]
[332635383,1721381485018,-500.0,0.00019452,2]
[332635384,1721381485027,-500.0,0.00019452,2]
[332635385,1721381485036,-500.0,0.00019452,2]
[332635386,1721381485046,-2235.43,0.00019452,2]
[332635387,1721381485055,-500.0,0.00019452,2]
[332635388,1721381485064,-1118.56,0.00019452,2]
[332635389,1721381485075,-546.49728554,0.00019452,2]
[332635390,1721381485086,-440.48102587,0.00019452,2]
[332635391,1721381485095,-3258.34,0.00019452,2]
[332635392,1721381485105,-500.0,0.00019452,2]
[332635393,1721381485115,-649.68880254,0.00019452,2]
[332635394,1721381485124,-500.0,0.00019452,2]
[332635395,1721381485133,-500.0,0.00019452,2]
[332635396,1721381485142,-500.0,0.00019452,2]
[332635397,1721381485152,-1024.97,0.00019452,2]
[332635398,1721381485163,-500.0,0.00019452,2]
[332635399,1721381485173,-500.0,0.00019452,2]
[332635400,1721381485182,-500.0,0.00019452,2]
[332635401,1721381485191,-273.40757901,0.00019452,2]
[332635402,1721381485203,-649.8,0.00019452,2]
[332635403,1721381485212,-1329.3,0.00019452,2]
[332635404,1721381485222,-500.0,0.00019452,2]
[332635405,1721381485231,-500.0,0.00019452,2]
[332635406,1721381485243,-156.4558247,0.00019452,2]
[332635407,1721381485252,-501.69926716,0.00019452,2]
[332635408,1721381485261,-2128.47,0.00019452,2]
[332635409,1721381485270,-500.0,0.00019452,2]
[332635410,1721381485279,-500.0,0.00019452,2]
[332635411,1721381485288,-795.19764305,0.00019452,2]
[332635412,1721381485993,-376.60235695,0.00019452,2]
[332635413,1721381486003,-511.58858143,0.00019452,2]
[332635414,1721381486013,-201.81314876,0.00019452,2]
[332635415,1721381486023,-500.0,0.00019452,2]
[332635416,1721381486033,-500.0,0.00019452,2]
[332635417,1721381486043,-2723.66,0.00019452,2]
[332635418,1721381486052,-500.0,0.00019452,2]
[332635419,1721381486062,-500.0,0.00019452,2]
[332635420,1721381486071,-500.0,0.00019452,2]
[332635421,1721381486084,-500.0,0.00019452,2]
[332635422,1721381486094,-1660.43,0.00019452,2]
[332635423,1721381486103,-2051.34,0.00019452,2]
[332635424,1721381486114,-500.0,0.00019452,2]
[332635425,1721381486124,-500.0,0.00019452,2]
[332635426,1721381486133,-1208.02,0.00019452,2]
[332635427,1721381486143,-500.0,0.00019452,2]
[332635428,1721381486155,-754.23,0.00019452,2]
[332635429,1721381486165,-500.0,0.00019452,2]
[332635430,1721381486175,-500.0,0.00019452,2]
[332635431,1721381486184,-74.71591286,0.00019452,2]
[332635432,1721381593574,150.0,0.000191,30]
[332635433,1721382193525,150.0,0.000191,30]
[332635436,1721382568314,-779.01663473,0.0001479,2]
[332635437,1721382568382,-779.01663473,0.0001479,2]
[332635438,1721382568453,-761.07121997,0.0001479,2]
[332635439,1721382593647,-825.39872452,0.0001479,2]
[332635440,1721382593682,-236.44938538,0.0001479,2]
[332635441,1721382593718,-825.39872452,0.0001479,2]
[332635449,1721382632793,-1473.64867615,0.0001479,2]
[332635451,1721382632803,-217.52557365,0.0001479,2]
[332635453,1721382632812,-166.666666,0.00014795,2]
[332635455,1721382632821,-2213.0532778,0.00016038,2]
[332635457,1721382632831,-300.0,0.00017986,2]
[332635459,1721382632840,-2000.0,0.00017987,14]
[332635461,1721382632853,-2000.0,0.00017987,14]
[332635464,1721382632863,-2000.0,0.00017987,14]
[332635466,1721382632873,-2000.0,0.00017987,14]
[332635468,1721382632882,-2000.0,0.00017987,14]
[332635470,1721382632891,-448.6,0.00018548,2]
[332635471,1721382632901,-1408.0,0.00018613,2]
[332635474,1721382632910,-448.6,0.00018855,2]
[332635476,1721382632920,-151.0,0.00018855,2]
[332635478,1721382632929,-4784.18159904,0.000189,2]
[332635480,1721382632942,-154.77557542,0.0001891,2]
[332635482,1721382632951,-1908.13933488,0.00018941,2]
[332635484,1721382632961,-275.42599078,0.00018949,2]
[332635486,1721382632971,-402.73067489,0.0001895,2]
[332635488,1721382632980,-316.85434873,0.00018969,2]
[332635602,1721382638989,-402.73067489,0.0001895,2]
[332635603,1721382638999,-34673.74838167,0.00018969,2]
[332635604,1721382639009,-251.80071494,0.00018976,2]
[332635605,1721382639019,-7821.87634789,0.00019,2]
[332635606,1721382639028,-250.0,0.00019041,2]
[332635607,1721382639038,-620.00054378,0.00019063,2]
[332635608,1721382639048,-4375.05910698,0.00019102,2]
[332635609,1721382639057,-3087.55332895,0.00019155,2]
[332635610,1721382639067,-331.37,0.00019158,3]
[332635611,1721382639077,-448.6,0.00019161,2]
[332635612,1721382639087,-151.0,0.00019161,2]
[332635613,1721382639097,-207.1048862,0.00019167,2]
[332635614,1721382639108,-295.29853732,0.00019167,2]
[332635615,1721382639117,-164.02550076,0.00019167,2]
[332635616,1721382639126,-500.0,0.00019167,2]
[332635617,1721382639139,-500.0,0.00019167,2]
[332635618,1721382639148,-500.0,0.00019167,2]
[332635619,1721382639157,-189.47665961,0.00019167,2]
[332635620,1721382639166,-526.22676322,0.00019167,2]
[332635621,1721382639175,-500.0,0.00019167,2]
[332635622,1721382639185,-500.0,0.00019167,2]
[332635623,1721382639194,-500.0,0.00019167,2]
[332635624,1721382639203,-500.0,0.00019167,2]
[332635625,1721382639212,-500.0,0.00019167,2]
[332635626,1721382639221,-500.0,0.00019167,2]
[332635627,1721382639231,-248.21543192,0.00019167,2]
[332635628,1721382639240,-500.0,0.00019167,2]
[332635629,1721382639249,-198052.06560793,0.00019168,2]
[332635673,1721382647035,-25911.30468056,0.00019168,2]
[332635674,1721382647178,-6304.0,0.00019168,2]
[332635675,1721382647189,-9203.202,0.00019168,2]
[332635680,1721383730290,-300.0,0.00014789,2]
[332635681,1721383730320,-300.0,0.00014789,2]
[332635682,1721383730350,-206.19228592,0.0001479,2]
[332635683,1721383730389,-806.19228592,0.0001479,2]
[332635684,1721383730424,-338.94196749,0.0001479,2]
[332635685,1721383755617,-845.21881671,0.0001479,2]
[332635686,1721383755672,-845.21881671,0.0001479,2]
[332635687,1721383755740,-842.85346029,0.0001479,2]
[332635688,1721383780393,-895.88463859,0.0001479,2]
[332635689,1721383780459,-895.88463859,0.0001479,2]
[332635690,1721383780508,-739.18380329,0.0001479,2]
[332635691,1721383805471,-946.50370019,0.0001479,2]
[332635692,1721383805524,-946.50370019,0.0001479,2]
[332635693,1721383805589,-514.36577708,0.0001479,2]
[332635793,1721383837941,-439.29103812,0.0001479,2]
[332635794,1721383837956,-514.56314981,0.0001479,2]
[332635795,1721383837967,-166.666666,0.00014795,2]
[332635796,1721383837977,-45.65018419,0.00015707,2]
[332635882,1721383840136,-254.34981581,0.00015707,2]
[332635884,1721383840146,-1928.51018419,0.00015708,2]
[332635887,1721383840157,-284.54309361,0.00015708,2]
[332635889,1721383840167,-1895.3567971,0.00015708,2]
[332635891,1721383840176,-33228.45460857,0.00015709,2]
[332635953,1721383843004,-872.51704125,0.00015709,2]
[332635961,1721383844118,-889.63108058,0.00015709,2]
[332635962,1721383844128,-306.07537966,0.0001571,2]
[332635963,1721383844138,-4948.15181202,0.00016,2]
[332635966,1721383846221,-1217.56612498,0.00016,2]
[332635968,1721383846231,-420.0,0.00017178,2]
[332635970,1721383846242,-215.64737845,0.00018,2]
[332635971,1721383846253,-1408.0,0.00018192,2]
[332635973,1721383846263,-336.4,0.00018556,2]
[332635975,1721383846272,-4462.04065356,0.00018647,2]
[332635977,1721383846523,-217.89319718,0.00018696,2]
[332635978,1721383846539,-8408.69264583,0.00018701,2]
[332635979,1721383994678,150.0,0.000191,30]
[332635985,1721384962797,-166.666666,0.00014795,2]
[332636012,1721385032738,-3130.58060419,0.00015952,2]
[332636047,1721385038143,-2349.68334749,0.00015952,2]
[332636048,1721385038156,-300.0,0.00015952,2]
[332636049,1721385038167,-180.0,0.00015952,2]
[332636050,1721385038179,-34990.6027304,0.00015953,2]
[332636051,1721385038192,-1500.0,0.0001611,2]
[332636052,1721385038203,-250.0,0.00016278,2]
[332636053,1721385038214,-256.6246604,0.00016402,2]
[332636054,1721385038226,-166.666666,0.00016896,2]
[332636055,1721385038238,-1230.99169539,0.00017019,2]
[332636056,1721385038250,-271.60692958,0.000172,2]
[332636057,1721385038261,-156.58671833,0.00017379,2]
[332636058,1721385038273,-500.53764773,0.00017389,2]
[332636059,1721385038285,-420.0,0.00017547,2]
[332636060,1721385038295,-778.55365615,0.00018302,2]
[332636061,1721385038306,-778.55365615,0.00018302,2]
[332636062,1721385038317,-154.79103211,0.00018302,2]
[332636063,1721385038329,-3427.53719329,0.00018302,2]
[332636064,1721385038340,-2213.0532778,0.00018356,2]
[332636065,1721385038351,-153.0,0.00018493,2]
[332636066,1721385038362,-153.0,0.00018493,2]
[332636067,1721385038373,-153.0,0.00018493,2]
[332636068,1721385038385,-153.0,0.00018493,2]
[332636069,1721385038396,-153.0,0.00018493,2]
[332636070,1721385038407,-153.0,0.00018493,2]
[332636071,1721385038419,-153.0,0.00018493,2]
[332636072,1721385038430,-153.0,0.00018493,2]
[332636073,1721385038441,-153.0,0.00018493,2]
[332636074,1721385038453,-275.42599079,0.00018541,2]
[332636075,1721385038463,-333.6,0.00018555,2]
[332636076,1721385038475,-154.86617689,0.00018557,2]
[332636077,1721385038485,-210.3980206,0.00018557,2]
[332636078,1721385038497,-1408.0,0.00018583,2]
[332636079,1721385038508,-150.0,0.00018583,2]
[332636080,1721385038519,-504.0,0.00018583,2]
[332636081,1721385038530,-587.0507957,0.0001863,2]
[332636082,1721385038541,-153.0,0.0001863,2]
[332636083,1721385038553,-587.313305,0.0001863,2]
[332636084,1721385038564,-153.0,0.0001863,2]
[332636085,1721385038575,-153.0,0.0001863,2]
[332636086,1721385038588,-153.0,0.0001863,2]
[332636087,1721385038599,-153.0,0.0001863,2]
[332636088,1721385038609,-306.0,0.0001863,2]
[332636089,1721385038620,-333.6,0.0001886,2]
[332636090,1721385038630,-154.79103211,0.00018899,2]
[332636091,1721385038640,-1063.15146645,0.000189,2]
[332636092,1721385038651,-290.24095588,0.00018941,2]
[332636093,1721385038662,-526.68531291,0.0001895,2]
[332636094,1721385038673,-290.24095588,0.00018975,2]
[332636095,1721385038684,-2000.0,0.00018978,14]
[332636096,1721385038695,-2000.0,0.00018978,14]
[332636097,1721385038706,-2000.0,0.00018978,14]
[332636098,1721385038717,-2000.0,0.00018978,14]
[332636099,1721385038728,-500.0,0.00018989,2]
[332636100,1721385038738,-500.0,0.00018989,2]
[332636101,1721385038750,-500.0,0.00018989,2]
[332636102,1721385038760,-500.0,0.00018989,2]
[332636103,1721385038771,-423.29430817,0.00018989,2]
[332636104,1721385038782,-500.0,0.00018989,2]
[332636105,1721385038793,-198.10187965,0.00018989,2]
[332636106,1721385038803,-500.0,0.00018989,2]
[332636107,1721385038815,-46575.8941753,0.0001899,2]
[332636108,1721385038826,-400387.52657177,0.00019,2]
[332636109,1721385038838,-10672.78320571,0.00019,2]
[332636139,1721385043183,-13535.93689947,0.00015951,2]
[332636140,1721385043892,-7530.562947,0.00015951,2]
[332636155,1721385505116,251.54,0.0002505,120]
[332636163,1721386015275,1545.9,0.000225,30]
[332636164,1721386056316,500.53764773,0.00012119,2]
[332636165,1721386112156,-166.666666,0.00014795,2]
[332636166,1721386114505,139.13346727,0.00014689,2]
[332636167,1721386125105,598.66286783,0.00012119,2]
[332636168,1721386136872,-361.40418046,0.00014689,2]
[332636169,1721386136903,-461.13920134,0.00014689,2]
[332636170,1721386136944,-64.44619004,0.00014689,2]
[332636171,1721386142380,217.6738,0.00012119,2]
[332636172,1721386186237,-460.97151638,0.00014689,2]
[332636173,1721386186267,-166.666666,0.00014795,2]
[332636206,1721386238436,-778.55365615,0.00015746,2]
[332636208,1721386238447,-705.27075132,0.00015751,2]
[332636209,1721386238456,-199.76184323,0.0001595,2]
[332636210,1721386238501,-1037.53127398,0.00015744,2]
[332636223,1721386240455,-843.0243584,0.00015744,2]
[332636224,1721386240466,-332.49764542,0.00015744,2]
[332636225,1721386240477,-100.23815677,0.0001595,2]
[332636226,1721386240486,-237.0,0.0001595,2]
[332636227,1721386240495,-2910.13933566,0.00015951,2]
[332636228,1721386240507,-10613.23543612,0.00015951,2]
[332636229,1721386240516,-1275.79863981,0.00016094,14]
[332636252,1721386243821,-393.02408056,0.00016094,14]
[332636255,1721386243833,-331.17727963,0.00016094,14]
[332636257,1721386243843,-2000.0,0.00016094,14]
[332636260,1721386243853,-445.69290022,0.00016095,2]
[332636262,1721386243864,-166.666666,0.00016438,2]
[332636264,1721386243874,-2964.0796628,0.00016487,2]
[332636266,1721386243883,-177.326554,0.00016656,2]
[332636268,1721386243892,-177.326554,0.0001709,2]
[332636270,1721386243902,-177.326554,0.00017524,2]
[332636272,1721386243911,-153.0,0.00017534,2]
[332636273,1721386243920,-309.4544038,0.00017534,2]
[332636274,1721386243930,-420.0,0.00017545,2]
[332636275,1721386243939,-222.59515947,0.0001818,2]
[332636276,1721386243949,-153.0,0.00018356,2]
[332636277,1721386243958,-154.5974757,0.00018356,2]
[332636278,1721386243968,-153.0,0.00018356,2]
[332636279,1721386243977,-153.0,0.00018356,2]
[332636280,1721386243987,-153.0,0.00018356,2]
[332636281,1721386243996,-153.0,0.00018356,2]
[332636282,1721386244006,-153.0,0.00018356,2]
[332636283,1721386244016,-153.0,0.00018356,2]
[332636284,1721386244025,-153.0,0.00018356,2]
[332636285,1721386244034,-153.0,0.00018356,2]
[332636286,1721386244043,-153.0,0.00018356,2]
[332636287,1721386244053,-153.0,0.00018356,2]
[332636288,1721386244062,-322.4,0.00018377,2]
[332636289,1721386244072,-166.666666,0.000186,2]
[332636290,1721386244082,-1408.0,0.00018684,2]
[332636291,1721386244095,-322.4,0.00018699,2]
[332636292,1721386244105,-344.96997794,0.00018743,2]
[332636293,1721386244115,-5159.77007997,0.00018756,2]
[332636294,1721386244124,-957.26569703,0.00018773,2]
[332636295,1721386244134,-156.46513447,0.00018799,2]
[332636296,1721386244143,-526.68531291,0.00018845,2]
[332636297,1721386244153,-526.68531291,0.00018845,2]
[332636298,1721386244163,-917.18381696,0.00018945,2]
[332636299,1721386244174,-154.79103211,0.00018989,2]
[332636301,1721386244184,-16717.28019761,0.00019,2]
[332636308,1721386246386,-153.0,0.00018356,2]
[332636310,1721386246401,-3043.58837039,0.00019,2]
[332636311,1721386246412,-620.00002719,0.00019015,2]
[332636312,1721386246422,-322.4,0.00019021,2]
[332636313,1721386246432,-151.0,0.00019021,2]
[332636314,1721386246442,-250.0,0.00019041,2]
[332636315,1721386246452,-1388.09247875,0.00019078,2]
[332636316,1721386246463,-150.112233,0.000191,2]
[332636317,1721386246473,-1669.62191796,0.00019113,2]
[332636318,1721386246482,-213.69936757,0.00019167,2]
[332636319,1721386246492,-285.34190226,0.00019167,2]
[332636320,1721386246502,-500.0,0.00019167,2]
[332636321,1721386246512,-500.0,0.00019167,2]
[332636322,1721386246522,-500.0,0.00019167,2]
[332636324,1721386246533,-348.20909796,0.00019167,2]
[332636326,1721386246543,-500.0,0.00019167,2]
[332636327,1721386246552,-500.0,0.00019167,2]
[332636328,1721386246562,-500.0,0.00019167,2]
[332636329,1721386246571,-500.0,0.00019167,2]
[332636330,1721386246581,-500.0,0.00019167,2]
[332636331,1721386246596,-500.0,0.00019167,2]
[332636332,1721386246606,-292.11191492,0.00019167,2]
[332636333,1721386246616,-500.0,0.00019167,2]
[332636334,1721386246627,-500.0,0.00019167,2]
[332636335,1721386246638,-500.0,0.00019167,2]
[332636336,1721386246647,-250.0,0.00019167,2]
[332636337,1721386246657,-310871.43660758,0.00019168,2]
[332636338,1721386246680,-4147.82158442,0.00019168,2]
[332636339,1721386246689,-1159.1747415,0.00019177,2]
[332636340,1721386246700,-175.72896542,0.00019178,2]
[332636341,1721386246709,-500.0,0.00019178,2]
[332636342,1721386246719,-500.0,0.00019178,2]
[332636343,1721386246729,-500.0,0.00019178,2]
[332636344,1721386246738,-500.0,0.00019178,2]
[332636345,1721386246748,-500.0,0.00019178,2]
[332636346,1721386246758,-500.0,0.00019178,2]
[332636347,1721386246767,-500.0,0.00019178,2]
[332636348,1721386246776,-500.0,0.00019178,2]
[332636349,1721386246786,-500.0,0.00019178,2]
[332636350,1721386246795,-500.0,0.00019178,2]
[332636351,1721386246804,-500.0,0.00019178,2]
[332636352,1721386246814,-500.0,0.00019178,2]
[332636353,1721386246824,-500.0,0.00019178,2]
[332636354,1721386246833,-500.0,0.00019178,2]
[332636355,1721386246842,-505.78855562,0.00019178,2]
[332636356,1721386246851,-500.0,0.00019178,2]
[332636357,1721386246861,-569.11,0.00019178,2]
[332636358,1721386246870,-160.64261145,0.00019178,2]
[332636362,1721386395065,3000.0,0.000191,30]
[332636363,1721386396074,3000.0,0.0001911,30]
[332636364,1721386396815,3000.0,0.0001912,30]
[332636365,1721386397235,3000.0,0.0001913,30]
[332636366,1721386397697,3000.0,0.0001914,30]
[332636367,1721386398373,3000.0,0.0001915,30]
[332636368,1721386398778,3000.0,0.0001916,30]
[332636369,1721386399251,3000.0,0.0001917,30]
[332636370,1721386400095,3000.0,0.0001918,30]
[332636371,1721386400682,3000.0,0.0001919,30]
[332636372,1721386401290,4673.708702,0.000192,30]
[332636373,1721386546754,150.80395486,0.00021631,30]
[332636399,1721386996350,150.0,0.000191,30]
[332636625,1721387439526,-166.666666,0.00014795,2]
[332636626,1721387439536,-300.0,0.00015707,2]
[332636627,1721387439545,-300.0,0.00015707,2]
[332636628,1721387439554,-18608.09416932,0.00015708,2]
[332636629,1721387439564,-1500.0,0.00015708,2]
[332636630,1721387439573,-271.60692958,0.000164,2]
[332636631,1721387439582,-166.666666,0.00016499,2]
[332636632,1721387439591,-524.6711883,0.00016955,2]
[332636633,1721387439601,-341.613649,0.00016983,2]
[332636634,1721387439610,-178.0,0.00017178,2]
[332636635,1721387439619,-420.0,0.00017278,2]
[332636636,1721387439628,-250.0,0.00017487,2]
[332636637,1721387439637,-250.0,0.00017535,2]
[332636638,1721387439646,-153.0,0.00017578,2]
[332636639,1721387439655,-153.0,0.00017578,2]
[332636640,1721387439664,-250.0,0.00017583,2]
[332636641,1721387439673,-250.0,0.00017631,2]
[332636642,1721387439682,-153.0,0.00017678,2]
[332636643,1721387439691,-250.0,0.00017679,2]
[332636644,1721387439701,-250.0,0.00017727,2]
[332636645,1721387439710,-250.0,0.00017775,2]
[332636646,1721387439719,-250.0,0.00017823,2]